[Event "*** SCC Grand Prix: Titled Tuesday Blitz"]
[Site "Chess.com"]
[Date "2020.06.09"]
[Round "3"]
[White "gmmoranda"]
[Black "nihalsarin"]
[Result "1-0"]
[WhiteElo "2761"]
[BlackElo "2998"]
[TimeControl "180+1"]
[EndTime "9:30:15 PDT"]
[Termination "gmmoranda won by resignation"]

1. d4 {[%clk 0:03:00.9]} 1... Nf6 {[%clk 0:02:59]} 2. c4 {[%clk 0:03:01.2]} 2...
e6 {[%clk 0:02:57.4]} 3. Nf3 {[%clk 0:03:01.6]} 3... d5 {[%clk 0:02:57.6]} 4.
Nc3 {[%clk 0:03:01.8]} 4... Be7 {[%clk 0:02:58.1]} 5. Bf4 {[%clk 0:03:01.3]}
5... O-O {[%clk 0:02:57.2]} 6. e3 {[%clk 0:03:01.8]} 6... Nbd7 {[%clk 0:02:57]}
7. a3 {[%clk 0:03:02]} 7... c5 {[%clk 0:02:24.7]} 8. cxd5 {[%clk 0:03:01.2]}
8... Nxd5 {[%clk 0:02:24.1]} 9. Nxd5 {[%clk 0:03:01.6]} 9... exd5 {[%clk
0:02:25]} 10. dxc5 {[%clk 0:03:02.1]} 10... Nxc5 {[%clk 0:02:25.9]} 11. Be5
{[%clk 0:03:02.6]} 11... Bg4 {[%clk 0:02:14.6]} 12. Be2 {[%clk 0:03:02.4]} 12...
Ne6 {[%clk 0:02:02.5]} 13. O-O {[%clk 0:02:58.2]} 13... Bf6 {[%clk 0:02:02.3]}
14. Bxf6 {[%clk 0:02:41.7]} 14... Qxf6 {[%clk 0:02:03.2]} 15. Qb3 {[%clk
0:02:33.3]} 15... b6 {[%clk 0:01:56.4]} 16. h3 {[%clk 0:02:24.6]} 16... Bxf3
{[%clk 0:01:39.1]} 17. Bxf3 {[%clk 0:02:25.5]} 17... Rad8 {[%clk 0:01:39.5]} 18.
Bxd5 {[%clk 0:02:19]} 18... Nc5 {[%clk 0:01:39.8]} 19. Qa2 {[%clk 0:02:19.4]}
19... Rd6 {[%clk 0:01:27.4]} 20. Rad1 {[%clk 0:02:03.9]} 20... Rfd8 {[%clk
0:01:27]} 21. Rd4 {[%clk 0:02:02.8]} 21... Qe7 {[%clk 0:01:04.2]} 22. Rfd1
{[%clk 0:02:02]} 22... Kf8 {[%clk 0:01:04.7]} 23. Qc4 {[%clk 0:01:56.2]} 23...
Nd7 {[%clk 0:01:00]} 24. Bf3 {[%clk 0:01:37.3]} 24... Nc5 {[%clk 0:00:42.8]} 25.
b4 {[%clk 0:01:32.2]} 25... Ne6 {[%clk 0:00:40.4]} 26. Rxd6 {[%clk 0:01:30.2]}
26... Rxd6 {[%clk 0:00:41.3]} 27. Rc1 {[%clk 0:01:28.5]} 27... g6 {[%clk
0:00:40.2]} 28. Qc3 {[%clk 0:01:27.7]} 28... Kg8 {[%clk 0:00:40.3]} 29. Bg4
{[%clk 0:01:25.7]} 29... Ng5 {[%clk 0:00:34.3]} 30. Qb2 {[%clk 0:01:11]} 30...
h5 {[%clk 0:00:33.4]} 31. Be2 {[%clk 0:01:07.9]} 31... Ne4 {[%clk 0:00:29.9]}
32. Rc8+ {[%clk 0:01:07.7]} 32... Rd8 {[%clk 0:00:29.8]} 33. Qc2 {[%clk
0:01:02.7]} 33... Rxc8 {[%clk 0:00:30.1]} 34. Qxc8+ {[%clk 0:01:03.3]} 34... Kg7
{[%clk 0:00:31]} 35. Bd3 {[%clk 0:01:01.8]} 35... Nd6 {[%clk 0:00:28]} 36. Qc6
{[%clk 0:00:59.4]} 36... Ne8 {[%clk 0:00:24]} 37. g3 {[%clk 0:00:58.1]} 37...
Nf6 {[%clk 0:00:24.5]} 38. Kg2 {[%clk 0:00:56.8]} 38... Qe5 {[%clk 0:00:23.9]}
39. a4 {[%clk 0:00:39.3]} 39... Qd5+ {[%clk 0:00:20.4]} 40. Qxd5 {[%clk
0:00:39.5]} 40... Nxd5 {[%clk 0:00:21.3]} 41. b5 {[%clk 0:00:40.2]} 41... Nc3
{[%clk 0:00:21.8]} 42. Bc2 {[%clk 0:00:40.5]} 42... f5 {[%clk 0:00:21.9]} 43.
Kf1 {[%clk 0:00:38.1]} 43... Kf6 {[%clk 0:00:22.1]} 44. Ke1 {[%clk 0:00:38.7]}
44... g5 {[%clk 0:00:16.2]} 45. f4 {[%clk 0:00:35.3]} 45... gxf4 {[%clk
0:00:08.3]} 46. gxf4 {[%clk 0:00:33.6]} 46... h4 {[%clk 0:00:08.4]} 47. Kd2
{[%clk 0:00:33.6]} 47... Nd5 {[%clk 0:00:09.1]} 48. Bb3 {[%clk 0:00:33.9]} 48...
Ne7 {[%clk 0:00:07.3]} 49. Kd3 {[%clk 0:00:33.8]} 49... Nc8 {[%clk 0:00:05.3]}
50. Kd4 {[%clk 0:00:33.8]} 50... Nd6 {[%clk 0:00:05.9]} 51. Kd5 {[%clk
0:00:34.2]} 51... Ne4 {[%clk 0:00:06.5]} 52. Kc6 {[%clk 0:00:29]} 52... Nf2
{[%clk 0:00:06.8]} 53. Kb7 {[%clk 0:00:29.5]} 53... Nxh3 {[%clk 0:00:07.3]} 54.
Bd1 {[%clk 0:00:29.8]} 54... Ng1 {[%clk 0:00:06.2]} 55. Bb3 {[%clk 0:00:27.1]}
55... Ne2 {[%clk 0:00:04.7]} 56. Bd5 {[%clk 0:00:26.7]} 56... Nc3 {[%clk
0:00:05.2]} 57. Bg2 {[%clk 0:00:24.8]} 57... Nxa4 {[%clk 0:00:05.7]} 58. Kxa7
{[%clk 0:00:25.4]} 58... Ke6 {[%clk 0:00:06.2]} 59. Kb7 {[%clk 0:00:24.8]} 59...
Kd6 {[%clk 0:00:06.7]} 60. Bh3 {[%clk 0:00:25.3]} 60... Nc3 {[%clk 0:00:04.8]}
61. Kxb6 {[%clk 0:00:23.6]} 61... Nd5+ {[%clk 0:00:04.9]} 62. Ka7 {[%clk
0:00:21.9]} 62... Nxe3 {[%clk 0:00:05.4]} 63. b6 {[%clk 0:00:22]} 63... Nc4
{[%clk 0:00:01.5]} 64. b7 {[%clk 0:00:21.5]} 64... Na5 {[%clk 0:00:02]} 65.
b8=Q+ {[%clk 0:00:21.9]} 1-0

[Event "*** SCC Grand Prix: Titled Tuesday Blitz"]
[Site "Chess.com"]
[Date "2020.06.09"]
[Round "3"]
[White "KNVB"]
[Black "dey2580"]
[Result "1-0"]
[WhiteElo "2701"]
[BlackElo "2439"]
[TimeControl "180+1"]
[EndTime "9:30:15 PDT"]
[Termination "KNVB won by checkmate"]

1. d4 {[%clk 0:02:15.2]} 1... Nf6 {[%clk 0:02:59.4]} 2. c4 {[%clk 0:02:12.6]}
2... e6 {[%clk 0:02:59.5]} 3. Nc3 {[%clk 0:02:05.6]} 3... Bb4 {[%clk 0:02:59.1]}
4. a3 {[%clk 0:02:04]} 4... Bxc3+ {[%clk 0:02:58.4]} 5. bxc3 {[%clk 0:02:01.7]}
5... d6 {[%clk 0:02:56.2]} 6. f3 {[%clk 0:02:02.6]} 6... Nbd7 {[%clk 0:02:54.6]}
7. e4 {[%clk 0:02:03.5]} 7... e5 {[%clk 0:02:54.9]} 8. Bd3 {[%clk 0:02:04.3]}
8... O-O {[%clk 0:02:52.6]} 9. Ne2 {[%clk 0:02:05.2]} 9... b6 {[%clk 0:02:52.2]}
10. O-O {[%clk 0:02:05.3]} 10... a5 {[%clk 0:02:52.5]} 11. g4 {[%clk 0:02:05.2]}
11... Qe7 {[%clk 0:02:49.5]} 12. Ng3 {[%clk 0:02:05.8]} 12... g6 {[%clk
0:02:48.8]} 13. Kg2 {[%clk 0:02:05.4]} 13... Bb7 {[%clk 0:02:43.9]} 14. h4
{[%clk 0:02:05.4]} 14... Rfe8 {[%clk 0:02:38.7]} 15. d5 {[%clk 0:02:05.9]} 15...
Nc5 {[%clk 0:02:38]} 16. Be2 {[%clk 0:02:06.5]} 16... Nfd7 {[%clk 0:01:50]} 17.
h5 {[%clk 0:02:06.4]} 17... c6 {[%clk 0:01:44.8]} 18. Rh1 {[%clk 0:02:05.2]}
18... Nf8 {[%clk 0:01:38.2]} 19. hxg6 {[%clk 0:02:02.5]} 19... fxg6 {[%clk
0:01:35.9]} 20. Rb1 {[%clk 0:02:03.4]} 20... Qc7 {[%clk 0:00:45.9]} 21. Bg5
{[%clk 0:02:03.5]} 21... Ba6 {[%clk 0:00:40.2]} 22. Qd2 {[%clk 0:02:00]} 22...
Rac8 {[%clk 0:00:34.6]} 23. Rbg1 {[%clk 0:01:48.2]} 23... Qf7 {[%clk 0:00:32.4]}
24. Qe3 {[%clk 0:01:47.6]} 24... cxd5 {[%clk 0:00:29.1]} 25. cxd5 {[%clk
0:01:48.5]} 25... Bxe2 {[%clk 0:00:27.7]} 26. Nxe2 {[%clk 0:01:49.1]} 26... Na4
{[%clk 0:00:21.4]} 27. Rb1 {[%clk 0:01:48.9]} 27... Rc4 {[%clk 0:00:20.9]} 28.
Qd3 {[%clk 0:01:45.8]} 28... Rec8 {[%clk 0:00:20.7]} 29. Bd2 {[%clk 0:01:46.5]}
29... Nd7 {[%clk 0:00:20.3]} 30. Qe3 {[%clk 0:01:46.6]} 30... Nac5 {[%clk
0:00:17.8]} 31. Rh2 {[%clk 0:01:47.1]} 31... Na4 {[%clk 0:00:16.7]} 32. Rbh1
{[%clk 0:01:47]} 32... Nf8 {[%clk 0:00:16.5]} 33. Qd3 {[%clk 0:01:32.6]} 33...
R8c7 {[%clk 0:00:15.5]} 34. Qb1 {[%clk 0:01:31.1]} 34... R4c5 {[%clk 0:00:14.1]}
35. Qb3 {[%clk 0:01:30]} 35... b5 {[%clk 0:00:13.8]} 36. Be3 {[%clk 0:01:29.8]}
36... Rxc3 {[%clk 0:00:13.9]} 37. Nxc3 {[%clk 0:01:29.6]} 37... Rxc3 {[%clk
0:00:14.6]} 38. Qxb5 {[%clk 0:01:04]} 38... Rxe3 {[%clk 0:00:15.2]} 39. Rf1
{[%clk 0:01:04.9]} 39... Nc3 {[%clk 0:00:15]} 40. Qb6 {[%clk 0:01:02]} 40...
Re2+ {[%clk 0:00:14.2]} 41. Rf2 {[%clk 0:01:02.7]} 41... Rxf2+ {[%clk
0:00:11.3]} 42. Qxf2 {[%clk 0:01:03.6]} 42... Qf4 {[%clk 0:00:10.8]} 43. Rh1
{[%clk 0:01:03.9]} 43... Nb5 {[%clk 0:00:09.2]} 44. Re1 {[%clk 0:00:41]} 44...
Nd4 {[%clk 0:00:08.7]} 45. Qe3 {[%clk 0:00:41.6]} 45... Qf6 {[%clk 0:00:08.1]}
46. Rb1 {[%clk 0:00:39.9]} 46... h5 {[%clk 0:00:08]} 47. g5 {[%clk 0:00:38.3]}
47... Qf7 {[%clk 0:00:08.5]} 48. f4 {[%clk 0:00:29.4]} 48... Qd7 {[%clk
0:00:07.3]} 49. Qh3 {[%clk 0:00:06.8]} 49... Qc7 {[%clk 0:00:06.3]} 50. Qd3
{[%clk 0:00:05.4]} 50... Qc8 {[%clk 0:00:06.3]} 51. fxe5 {[%clk 0:00:03.4]}
51... dxe5 {[%clk 0:00:06.5]} 52. Kf2 {[%clk 0:00:02.3]} 52... Qg4 {[%clk
0:00:06]} 53. Rg1 {[%clk 0:00:02.6]} 53... Qf4+ {[%clk 0:00:06]} 54. Kg2 {[%clk
0:00:02.9]} 54... Qxg5+ {[%clk 0:00:06.4]} 55. Kh2 {[%clk 0:00:02.4]} 55... Qf4+
{[%clk 0:00:06.7]} 56. Kh3 {[%clk 0:00:02.2]} 56... g5 {[%clk 0:00:06.7]} 57.
Qg3 {[%clk 0:00:01.9]} 57... g4+ {[%clk 0:00:06.7]} 58. Kg2 {[%clk 0:00:01.8]}
58... Qd2+ {[%clk 0:00:06.4]} 59. Kh1 {[%clk 0:00:02]} 59... Ng6 {[%clk
0:00:06.7]} 60. d6 {[%clk 0:00:01.7]} 60... Nf3 {[%clk 0:00:06.9]} 61. Rf1
{[%clk 0:00:01.4]} 61... Qxd6 {[%clk 0:00:06.7]} 62. Qf2 {[%clk 0:00:02]} 62...
Qf6 {[%clk 0:00:06.3]} 63. Qg3 {[%clk 0:00:01.9]} 63... Kg7 {[%clk 0:00:04.4]}
64. Rd1 {[%clk 0:00:02.3]} 64... Qf4 {[%clk 0:00:04.5]} 65. Qf2 {[%clk
0:00:02.4]} 65... g3 {[%clk 0:00:04.2]} 66. Qg2 {[%clk 0:00:02.5]} 66... h4
{[%clk 0:00:04.3]} 67. Rd7+ {[%clk 0:00:02.3]} 67... Kh6 {[%clk 0:00:03.2]} 68.
Rd1 {[%clk 0:00:02.9]} 68... Qe3 {[%clk 0:00:03.4]} 69. Qh3 {[%clk 0:00:02.9]}
69... Nf4 {[%clk 0:00:03.5]} 70. Rd6+ {[%clk 0:00:02]} 70... Kg5 {[%clk
0:00:02.6]} 71. Qf5# {[%clk 0:00:02.3]} 1-0

[Event "*** SCC Grand Prix: Titled Tuesday Blitz"]
[Site "Chess.com"]
[Date "2020.06.09"]
[Round "3"]
[White "GiorgianBarbosa"]
[Black "GM-2023"]
[Result "1-0"]
[WhiteElo "2335"]
[BlackElo "2058"]
[TimeControl "180+1"]
[EndTime "9:30:15 PDT"]
[Termination "GiorgianBarbosa won on time"]

1. Nf3 {[%clk 0:03:00.9]} 1... Nf6 {[%clk 0:02:59.7]} 2. g4 {[%clk 0:02:58.2]}
2... Nxg4 {[%clk 0:02:59.3]} 3. Bg2 {[%clk 0:02:57.9]} 3... g6 {[%clk
0:02:58.5]} 4. d4 {[%clk 0:02:55.4]} 4... Bg7 {[%clk 0:02:58.6]} 5. c4 {[%clk
0:02:55]} 5... O-O {[%clk 0:02:58.3]} 6. Nc3 {[%clk 0:02:54.8]} 6... d6 {[%clk
0:02:54.5]} 7. h4 {[%clk 0:02:49.5]} 7... h5 {[%clk 0:02:53.5]} 8. Bg5 {[%clk
0:02:48.5]} 8... Qe8 {[%clk 0:02:33.1]} 9. Qd2 {[%clk 0:02:46.5]} 9... e5 {[%clk
0:02:20.6]} 10. Nd5 {[%clk 0:02:30.3]} 10... Na6 {[%clk 0:02:02]} 11. O-O-O
{[%clk 0:02:13.6]} 11... f6 {[%clk 0:01:47]} 12. Be3 {[%clk 0:02:08.6]} 12... c6
{[%clk 0:01:45.8]} 13. Nc3 {[%clk 0:02:06.8]} 13... Nxe3 {[%clk 0:01:40.1]} 14.
Qxe3 {[%clk 0:02:05.9]} 14... exd4 {[%clk 0:01:40.5]} 15. Qxd4 {[%clk
0:02:05.4]} 15... d5 {[%clk 0:01:23.6]} 16. cxd5 {[%clk 0:01:58.7]} 16... cxd5
{[%clk 0:01:24.5]} 17. Qxd5+ {[%clk 0:01:48.2]} 17... Be6 {[%clk 0:01:22.6]} 18.
Qxb7 {[%clk 0:01:41.9]} 18... Nc5 {[%clk 0:01:01.8]} 19. Qb5 {[%clk 0:01:11.6]}
19... Qxb5 {[%clk 0:00:25]} 20. Nxb5 {[%clk 0:01:12.5]} 20... Bxa2 {[%clk
0:00:25.5]} 21. Nc3 {[%clk 0:01:07.6]} 21... Bb3 {[%clk 0:00:18.6]} 22. Rd6
{[%clk 0:00:59.4]} 22... Rfd8 {[%clk 0:00:15.8]} 23. Rc6 {[%clk 0:00:55]} 23...
Rac8 {[%clk 0:00:14.8]} 24. Rxc8 {[%clk 0:00:53.9]} 24... Rxc8 {[%clk
0:00:15.7]} 25. Nd4 {[%clk 0:00:49.7]} 25... f5 {[%clk 0:00:14.1]} 26. e3 {[%clk
0:00:48.9]} 26... Bxd4 {[%clk 0:00:08.3]} 27. exd4 {[%clk 0:00:49.8]} 27... Na4
{[%clk 0:00:09.2]} 28. Kd2 {[%clk 0:00:49.1]} 28... Nb6 {[%clk 0:00:08.8]} 29.
Ra1 {[%clk 0:00:44.5]} 29... a5 {[%clk 0:00:06.9]} 30. Ke3 {[%clk 0:00:30.1]}
30... a4 {[%clk 0:00:05.6]} 31. Kf4 {[%clk 0:00:28.6]} 31... Kg7 {[%clk
0:00:04.8]} 32. Re1 {[%clk 0:00:25.3]} 32... Rc7 {[%clk 0:00:04.5]} 33. Re5
{[%clk 0:00:23.9]} 33... Nc4 {[%clk 0:00:04]} 34. Rb5 {[%clk 0:00:17.1]} 34...
Nd6 {[%clk 0:00:03.9]} 35. Rb6 {[%clk 0:00:16.6]} 35... Nc4 {[%clk 0:00:02.9]}
36. Kg5 {[%clk 0:00:14.9]} 36... Nxb2 {[%clk 0:00:01.8]} 37. Rxg6+ {[%clk
0:00:14.8]} 37... Kf7 {[%clk 0:00:02.3]} 38. Rh6 {[%clk 0:00:13.9]} 38... Rxc3
{[%clk 0:00:02.2]} 39. Rh7+ {[%clk 0:00:13.3]} 39... Ke6 {[%clk 0:00:02.6]} 40.
Rh6+ {[%clk 0:00:11.2]} 40... Kd7 {[%clk 0:00:03]} 41. Ra6 {[%clk 0:00:11.2]}
41... Bc4 {[%clk 0:00:01.9]} 42. Ra5 {[%clk 0:00:09.6]} 42... Kd6 {[%clk
0:00:02.2]} 43. Kxh5 {[%clk 0:00:08.1]} 43... Nd3 {[%clk 0:00:03.1]} 44. Kg5
{[%clk 0:00:08]} 44... Nb4 {[%clk 0:00:04]} 45. h5 {[%clk 0:00:08.1]} 45... Nd5
{[%clk 0:00:04.3]} 46. Rxa4 {[%clk 0:00:07.4]} 46... Ne7 {[%clk 0:00:05.1]} 47.
Ra7 {[%clk 0:00:07.5]} 47... Bf7 {[%clk 0:00:04.6]} 48. h6 {[%clk 0:00:07.5]}
48... Rc8 {[%clk 0:00:03.4]} 49. Ra6+ {[%clk 0:00:07.1]} 49... Kd7 {[%clk
0:00:03.2]} 50. Ra7+ {[%clk 0:00:07.5]} 50... Kd6 {[%clk 0:00:03.6]} 51. Kf6
{[%clk 0:00:07.6]} 51... Rf8 {[%clk 0:00:03]} 52. Kg7 {[%clk 0:00:07]} 52...
Rg8+ {[%clk 0:00:01.4]} 53. Kxf7 {[%clk 0:00:06.8]} 53... Rxg2 {[%clk
0:00:02.3]} 54. Rxe7 {[%clk 0:00:06]} 54... Rh2 {[%clk 0:00:02.4]} 55. Re6+
{[%clk 0:00:06.2]} 55... Kd7 {[%clk 0:00:02.3]} 56. Rg6 {[%clk 0:00:06.7]} 56...
f4 {[%clk 0:00:01.8]} 57. Kg7 {[%clk 0:00:05.9]} 57... Ke7 {[%clk 0:00:01.8]}
58. h7 {[%clk 0:00:06.4]} 1-0

[Event "*** SCC Grand Prix: Titled Tuesday Blitz"]
[Site "Chess.com"]
[Date "2020.06.09"]
[Round "3"]
[White "djano"]
[Black "olksuna"]
[Result "0-1"]
[WhiteElo "2409"]
[BlackElo "2614"]
[TimeControl "180+1"]
[EndTime "9:30:18 PDT"]
[Termination "olksuna won by checkmate"]

1. d4 {[%clk 0:03:00.9]} 1... Nf6 {[%clk 0:02:59.2]} 2. Nf3 {[%clk 0:03:01.2]}
2... g6 {[%clk 0:02:59.1]} 3. c3 {[%clk 0:03:01.6]} 3... Bg7 {[%clk 0:02:59]} 4.
Bf4 {[%clk 0:03:01.7]} 4... O-O {[%clk 0:02:58.9]} 5. Nbd2 {[%clk 0:03:02.2]}
5... d6 {[%clk 0:02:58]} 6. h3 {[%clk 0:03:00.3]} 6... b6 {[%clk 0:02:53.9]} 7.
e3 {[%clk 0:02:56.6]} 7... Bb7 {[%clk 0:02:54]} 8. Bh2 {[%clk 0:02:56.5]} 8...
Nbd7 {[%clk 0:02:52.6]} 9. a4 {[%clk 0:02:56.7]} 9... a6 {[%clk 0:02:52.5]} 10.
a5 {[%clk 0:02:46.9]} 10... b5 {[%clk 0:02:52.3]} 11. Be2 {[%clk 0:02:41.8]}
11... e6 {[%clk 0:02:51.8]} 12. O-O {[%clk 0:02:41]} 12... Qe7 {[%clk
0:02:52.5]} 13. c4 {[%clk 0:02:34.9]} 13... bxc4 {[%clk 0:02:50.4]} 14. Nxc4
{[%clk 0:02:35.8]} 14... Ne4 {[%clk 0:02:48.8]} 15. Nfd2 {[%clk 0:02:33.1]}
15... Nxd2 {[%clk 0:02:44.9]} 16. Nxd2 {[%clk 0:02:28.9]} 16... e5 {[%clk
0:02:45.1]} 17. Bf3 {[%clk 0:02:13.1]} 17... e4 {[%clk 0:02:39.4]} 18. Be2
{[%clk 0:02:11.5]} 18... Nf6 {[%clk 0:02:34.5]} 19. Qb3 {[%clk 0:02:06.8]} 19...
Rab8 {[%clk 0:02:32]} 20. Rfc1 {[%clk 0:02:05.1]} 20... Nd5 {[%clk 0:02:17.2]}
21. Bc4 {[%clk 0:01:53.6]} 21... Ba8 {[%clk 0:02:09.7]} 22. Qa3 {[%clk
0:01:19.8]} 22... Nb4 {[%clk 0:02:06.6]} 23. Bf1 {[%clk 0:01:14.3]} 23... f5
{[%clk 0:01:36.9]} 24. Rc4 {[%clk 0:01:12.7]} 24... Nd5 {[%clk 0:01:35.8]} 25.
Rac1 {[%clk 0:01:11.8]} 25... Kh8 {[%clk 0:01:19.8]} 26. R4c2 {[%clk 0:00:57.7]}
26... Bb7 {[%clk 0:01:10]} 27. Bc4 {[%clk 0:00:54.1]} 27... Nf6 {[%clk
0:00:54.9]} 28. Bf1 {[%clk 0:00:53.4]} 28... Ne8 {[%clk 0:00:53.2]} 29. Bg3
{[%clk 0:00:43.5]} 29... g5 {[%clk 0:00:52]} 30. f4 {[%clk 0:00:33.6]} 30...
exf3 {[%clk 0:00:48.4]} 31. Nxf3 {[%clk 0:00:33.8]} 31... h6 {[%clk 0:00:39]}
32. Kh1 {[%clk 0:00:31.8]} 32... Be4 {[%clk 0:00:36.9]} 33. Bd3 {[%clk
0:00:30.6]} 33... Bxd3 {[%clk 0:00:32.3]} 34. Qxd3 {[%clk 0:00:31.5]} 34... Rb5
{[%clk 0:00:32.8]} 35. Qa3 {[%clk 0:00:23.7]} 35... Qe4 {[%clk 0:00:31.3]} 36.
Nd2 {[%clk 0:00:21.2]} 36... Qb7 {[%clk 0:00:27.8]} 37. b3 {[%clk 0:00:16.9]}
37... f4 {[%clk 0:00:27.5]} 38. exf4 {[%clk 0:00:16.5]} 38... gxf4 {[%clk
0:00:28.2]} 39. Bh4 {[%clk 0:00:17]} 39... Bxd4 {[%clk 0:00:27.6]} 40. Nf3
{[%clk 0:00:15.4]} 40... Be3 {[%clk 0:00:27.3]} 41. Rb1 {[%clk 0:00:13.9]} 41...
Rg8 {[%clk 0:00:25]} 42. Qb2+ {[%clk 0:00:13.1]} 42... Rg7 {[%clk 0:00:24.5]}
43. Rc4 {[%clk 0:00:11.4]} 43... Qd5 {[%clk 0:00:20.4]} 44. Qc2 {[%clk 0:00:11]}
44... Qg8 {[%clk 0:00:19.1]} 45. Rd1 {[%clk 0:00:09.8]} 45... Rg6 {[%clk
0:00:15.8]} 46. Nd4 {[%clk 0:00:09.4]} 46... Rh5 {[%clk 0:00:13]} 47. Nf3 {[%clk
0:00:08]} 47... Nf6 {[%clk 0:00:11.5]} 48. Qb2 {[%clk 0:00:06.3]} 48... Qf7
{[%clk 0:00:11.3]} 49. Bxf6+ {[%clk 0:00:06.2]} 49... Rxf6 {[%clk 0:00:11.5]}
50. Rxc7 {[%clk 0:00:05.7]} 50... Qxc7 {[%clk 0:00:08.9]} 51. Qxf6+ {[%clk
0:00:05.8]} 51... Qg7 {[%clk 0:00:09.8]} 52. Qxg7+ {[%clk 0:00:05.7]} 52... Kxg7
{[%clk 0:00:10.7]} 53. Rxd6 {[%clk 0:00:06]} 53... Rxa5 {[%clk 0:00:11.6]} 54.
g4 {[%clk 0:00:04.3]} 54... Ra1+ {[%clk 0:00:10.8]} 55. Kg2 {[%clk 0:00:04.5]}
55... Ra2+ {[%clk 0:00:11.4]} 56. Kh1 {[%clk 0:00:05]} 56... Rf2 {[%clk
0:00:11.2]} 57. Nh4 {[%clk 0:00:04.6]} 57... Rf1+ {[%clk 0:00:09.9]} 58. Kg2
{[%clk 0:00:04.5]} 58... Rf2+ {[%clk 0:00:08.7]} 59. Kh1 {[%clk 0:00:04.5]}
59... Rb2 {[%clk 0:00:09.6]} 60. Nf5+ {[%clk 0:00:04.5]} 60... Kf8 {[%clk
0:00:10.1]} 61. Re6 {[%clk 0:00:03.2]} 61... Rxb3 {[%clk 0:00:08.3]} 62. Nxh6
{[%clk 0:00:03.2]} 62... f3 {[%clk 0:00:07]} 63. Nf5 {[%clk 0:00:02.4]} 63...
Bf4 {[%clk 0:00:03.9]} 64. Rf6+ {[%clk 0:00:02.4]} 64... Kg8 {[%clk 0:00:03.1]}
65. g5 {[%clk 0:00:02.8]} 65... Rb1# {[%clk 0:00:02.4]} 0-1

[Event "*** SCC Grand Prix: Titled Tuesday Blitz"]
[Site "Chess.com"]
[Date "2020.06.09"]
[Round "3"]
[White "mfwagnerpeixoto"]
[Black "putra48"]
[Result "0-1"]
[WhiteElo "2274"]
[BlackElo "2612"]
[TimeControl "180+1"]
[EndTime "9:30:21 PDT"]
[Termination "putra48 won on time"]

1. e4 {[%clk 0:03:00.9]} 1... c5 {[%clk 0:02:56.4]} 2. Nf3 {[%clk 0:02:57.1]}
2... d6 {[%clk 0:02:56.6]} 3. d4 {[%clk 0:02:57.5]} 3... cxd4 {[%clk 0:02:57.5]}
4. Nxd4 {[%clk 0:02:57.8]} 4... Nf6 {[%clk 0:02:57.7]} 5. Nc3 {[%clk 0:02:58.4]}
5... a6 {[%clk 0:02:57.9]} 6. Bg5 {[%clk 0:02:57]} 6... e6 {[%clk 0:02:57.9]} 7.
f4 {[%clk 0:02:55.4]} 7... Be7 {[%clk 0:02:58.1]} 8. Qf3 {[%clk 0:02:54.3]} 8...
Qc7 {[%clk 0:02:58.4]} 9. O-O-O {[%clk 0:02:53.1]} 9... Nbd7 {[%clk 0:02:57.9]}
10. g4 {[%clk 0:02:51.6]} 10... b5 {[%clk 0:02:57.3]} 11. Bxf6 {[%clk
0:02:47.9]} 11... Nxf6 {[%clk 0:02:58.2]} 12. g5 {[%clk 0:02:47.8]} 12... Nd7
{[%clk 0:02:56.5]} 13. f5 {[%clk 0:02:46]} 13... Nc5 {[%clk 0:02:56.5]} 14. f6
{[%clk 0:02:45.1]} 14... gxf6 {[%clk 0:02:57.4]} 15. gxf6 {[%clk 0:02:46]} 15...
Bf8 {[%clk 0:02:58]} 16. Rg1 {[%clk 0:02:45]} 16... h5 {[%clk 0:02:58.5]} 17.
Rg7 {[%clk 0:02:42.4]} 17... b4 {[%clk 0:02:51.2]} 18. Nd5 {[%clk 0:02:41.4]}
18... Qb7 {[%clk 0:02:50.3]} 19. Bh3 {[%clk 0:02:29.7]} 19... Bd7 {[%clk
0:02:32.2]} 20. Kb1 {[%clk 0:02:12]} 20... exd5 {[%clk 0:02:17.5]} 21. exd5
{[%clk 0:02:04.3]} 21... Bxg7 {[%clk 0:02:03.1]} 22. Re1+ {[%clk 0:01:26.6]}
22... Kd8 {[%clk 0:01:54.6]} 23. fxg7 {[%clk 0:01:24.2]} 23... Rg8 {[%clk
0:01:51.7]} 24. Qxf7 {[%clk 0:01:07.6]} 24... Kc7 {[%clk 0:01:50.5]} 25. Ne6+
{[%clk 0:00:47.4]} 25... Kb6 {[%clk 0:01:43.6]} 26. Nxc5 {[%clk 0:00:42]} 26...
dxc5 {[%clk 0:01:42.6]} 27. Bxd7 {[%clk 0:00:39.6]} 27... Rad8 {[%clk 0:01:42]}
28. Qe6+ {[%clk 0:00:26]} 28... Ka7 {[%clk 0:01:40.3]} 29. Bc6 {[%clk
0:00:18.1]} 29... Qxg7 {[%clk 0:01:39.7]} 30. Qe7+ {[%clk 0:00:14.9]} 30... Qxe7
{[%clk 0:01:39.3]} 31. Rxe7+ {[%clk 0:00:15.8]} 31... Kb8 {[%clk 0:01:39.7]} 32.
Rb7+ {[%clk 0:00:15.5]} 32... Kc8 {[%clk 0:01:40.1]} 33. b3 {[%clk 0:00:15.6]}
33... Rd6 {[%clk 0:01:26.1]} 34. Ra7 {[%clk 0:00:14.5]} 34... Rg2 {[%clk
0:01:25.6]} 35. Rxa6 {[%clk 0:00:13.3]} 35... Rxh2 {[%clk 0:01:24.7]} 36. Ra8+
{[%clk 0:00:13.1]} 36... Kc7 {[%clk 0:01:25]} 37. Ra7+ {[%clk 0:00:13.2]} 37...
Kd8 {[%clk 0:01:25.2]} 38. Rh7 {[%clk 0:00:12.5]} 38... h4 {[%clk 0:01:24]} 39.
Kb2 {[%clk 0:00:11.7]} 39... Rf6 {[%clk 0:01:24]} 40. Bb5 {[%clk 0:00:10.4]}
40... Rff2 {[%clk 0:01:20.6]} 41. Bd3 {[%clk 0:00:10]} 41... Rd2 {[%clk
0:01:21.1]} 42. Kc1 {[%clk 0:00:09.2]} 42... h3 {[%clk 0:01:18.8]} 43. d6 {[%clk
0:00:08.9]} 43... Rdf2 {[%clk 0:01:07.7]} 44. Bb5 {[%clk 0:00:07.7]} 44... Rxc2+
{[%clk 0:01:03.4]} 45. Kb1 {[%clk 0:00:07.9]} 45... Rb2+ {[%clk 0:01:03.7]} 46.
Kc1 {[%clk 0:00:08.2]} 46... Rhc2+ {[%clk 0:01:03.2]} 47. Kd1 {[%clk 0:00:08]}
47... Rd2+ {[%clk 0:01:03.1]} 48. Kc1 {[%clk 0:00:08.2]} 48... Kc8 {[%clk
0:00:57]} 49. Rh8+ {[%clk 0:00:06]} 49... Kb7 {[%clk 0:00:57]} 50. d7 {[%clk
0:00:04.2]} 50... h2 {[%clk 0:00:52.6]} 51. d8=Q {[%clk 0:00:02.9]} 51... Rxd8
{[%clk 0:00:49.4]} 52. Rxd8 {[%clk 0:00:03.8]} 52... h1=Q+ {[%clk 0:00:44.9]}
53. Kxb2 {[%clk 0:00:03.8]} 53... Qh2+ {[%clk 0:00:44.6]} 54. Kb1 {[%clk
0:00:03.7]} 54... Qg1+ {[%clk 0:00:41.9]} 55. Kb2 {[%clk 0:00:03.8]} 55... Qf2+
{[%clk 0:00:41.9]} 56. Kb1 {[%clk 0:00:04]} 56... Qe1+ {[%clk 0:00:23.1]} 57.
Kb2 {[%clk 0:00:04.2]} 57... Qe5+ {[%clk 0:00:22.2]} 58. Kb1 {[%clk 0:00:04.4]}
58... Qe1+ {[%clk 0:00:18.9]} 59. Kb2 {[%clk 0:00:04.5]} 59... Qf2+ {[%clk
0:00:19.8]} 60. Kb1 {[%clk 0:00:04.4]} 60... Qf5+ {[%clk 0:00:18.2]} 61. Kb2
{[%clk 0:00:03.8]} 61... Qf6+ {[%clk 0:00:18.2]} 0-1